fUSD/lending_fUSD_20250526
["ID","MTS","AMOUNT","RATE_DAILY","PERIOD"]
[362399074,1748253032411,-155.07200541,0.00019897,2]
[362399075,1748253032421,-390.65358816,0.00019897,2]
[362399077,1748253032430,-1792.51934266,0.00019897,2]
[362399079,1748253032439,-1690.91727049,0.00019897,2]
[362399081,1748253032452,-1792.51934264,0.00019897,2]
[362399083,1748253032463,-1792.51934264,0.00019898,2]
[362399084,1748253032472,-1690.91727049,0.00019898,2]
[362399086,1748253032481,-1792.51934264,0.00019898,2]
[362399088,1748253032491,-1792.51934264,0.00019898,2]
[362399090,1748253032500,-1690.91727049,0.00019899,2]
[362399091,1748253032509,-155.465632,0.00019899,2]
[362399093,1748253032518,-155.465632,0.00019899,2]
[362399095,1748253032531,-155.110847,0.00019899,2]
[362399097,1748253032540,-166.30580718,0.00019899,2]
[362399098,1748253032550,-1690.91727049,0.00019899,2]
[362399099,1748253032559,-646.26735155,0.000199,2]
[362399100,1748253032568,-155.09069364,0.000199,2]
[362399101,1748253032578,-455.90425845,0.000199,2]
[362399102,1748253032589,-600.0,0.000199,7]
[362399103,1748253032598,-237.00467475,0.000199,2]
[362399104,1748253032607,-1690.91727049,0.000199,2]
[362399105,1748253032617,-239.5947966,0.000199,2]
[362399106,1748253032626,-160.97556508,0.000199,2]
[362399107,1748253032636,-500.24932767,0.00019973,2]
[362399108,1748253032645,-500.0,0.00019973,2]
[362399109,1748253032655,-260.99640718,0.00019973,2]
[362399110,1748253032669,-239.00359282,0.00019973,2]
[362399111,1748253032679,-500.0,0.00019973,2]
[362399112,1748253032690,-160.74348134,0.00019973,2]
[362399113,1748253032700,-500.0,0.00019973,2]
[362399114,1748253032709,-500.0,0.00019973,2]
[362399115,1748253032720,-500.0,0.00019973,2]
[362399116,1748253032731,-22.04504788,0.00019973,2]
[362399118,1748253032743,-477.95495212,0.00019973,2]
[362399119,1748253032752,-500.0,0.00019973,2]
[362399121,1748253032761,-137.88217456,0.00019973,2]
[362399123,1748253032773,-362.11782544,0.00019973,2]
[362399125,1748253032783,-500.0,0.00019973,2]
[362399127,1748253032792,-187.34,0.00019984,3]
[362399129,1748253032802,-1447.27,0.00019985,2]
[362399131,1748253032811,-161.289869,0.00019989,2]
[362399133,1748253032821,-155.465632,0.00019989,2]
[362399135,1748253032831,-155.110847,0.00019989,2]
[362399137,1748253032841,-166.307776,0.00019989,2]
[362399139,1748253032851,-887.10159409,0.0001999,2]
[362399141,1748253032863,-10087.40438816,0.0001999,2]
[362399143,1748253032872,-12500.0,0.0001999,2]
[362399145,1748253032882,-1386.2522729,0.00019992,2]
[362399147,1748253032893,-4413.7477271,0.00019992,2]
[362399149,1748253032902,-155.465632,0.00019992,2]
[362399151,1748253032911,-155.465632,0.00019992,2]
[362399153,1748253032923,-151.433267,0.00019993,2]
[362399155,1748253032933,-155.110847,0.00019993,2]
[362399157,1748253032944,-155.316172,0.00019993,2]
[362399159,1748253032954,-420.0,0.00019994,2]
[362399161,1748253032963,-420.0,0.00019994,2]
[362399163,1748253032972,-421.91260945,0.00019994,2]
[362399165,1748253032982,-420.0,0.00019994,2]
[362399167,1748253032991,-448.51357612,0.00019994,2]
[362399169,1748253033000,-412.90564634,0.00019994,2]
[362399171,1748253033010,-420.0,0.00019994,2]
[362399173,1748253033019,-421.05037379,0.00019994,2]
[362399175,1748253033032,-420.0,0.00019994,2]
[362399177,1748253033041,-420.0,0.00019994,2]
[362399179,1748253033050,-420.0,0.00019994,2]
[362399181,1748253033060,-420.0,0.00019994,2]
[362399183,1748253033070,-420.0,0.00019994,2]
[362399185,1748253033080,-420.0,0.00019994,2]
[362399187,1748253033091,-420.0,0.00019994,2]
[362399189,1748253033100,-420.0,0.00019994,2]
[362399191,1748253033110,-420.0,0.00019994,2]
[362399193,1748253033119,-420.0,0.00019994,2]
[362399195,1748253033128,-518.87,0.00019994,2]
[362399197,1748253033137,-420.0,0.00019994,2]
[362399199,1748253033147,-420.0,0.00019994,2]
[362399201,1748253033156,-420.0,0.00019994,2]
[362399203,1748253033165,-420.0,0.00019994,2]
[362399205,1748253033174,-420.0,0.00019994,2]
[362399207,1748253033183,-155.465632,0.00019994,2]
[362399209,1748253033192,-420.0,0.00019994,2]
[362399211,1748253033201,-155.465632,0.00019994,2]
[362399213,1748253033210,-420.0,0.00019994,2]
[362399215,1748253033218,-505.57,0.00019994,2]
[362399217,1748253033228,-420.0,0.00019994,2]
[362399219,1748253033237,-420.0,0.00019994,2]
[362399221,1748253033247,-365.03288808,0.00019994,2]
[362399223,1748253033256,-223.73921404,0.00019994,2]
[362399225,1748253033266,-176.72,0.00019994,2]
[362399227,1748253033275,-420.0,0.00019994,2]
[362399229,1748253033284,-200.20599304,0.00019994,2]
[362399231,1748253033295,-420.0,0.00019994,2]
[362399233,1748253033304,-427.42518851,0.00019994,2]
[362399235,1748253033313,-420.0,0.00019994,2]
[362399237,1748253033323,-156.03899012,0.00019994,2]
[362399239,1748253033332,-420.0,0.00019994,2]
[362399241,1748253033343,-420.0,0.00019994,2]
[362399243,1748253033353,-420.0,0.00019994,2]
[362399245,1748253033363,-420.0,0.00019994,2]
[362399247,1748253033373,-420.0,0.00019994,2]
[362399248,1748253033383,-420.0,0.00019994,2]
[362399250,1748253033392,-420.0,0.00019994,2]
[362399252,1748253033402,-420.0,0.00019994,2]
[362399255,1748253033411,-420.0,0.00019994,2]
[362399257,1748253033421,-420.0,0.00019994,2]
[362399259,1748253033431,-418.6,0.00019994,2]
[362399261,1748253033440,-380.0,0.00019994,2]
[362399263,1748253033450,-432.73387789,0.00019994,2]
[362399265,1748253033460,-420.0,0.00019994,2]
[362399267,1748253033469,-420.0,0.00019994,2]
[362399268,1748253033478,-420.0,0.00019994,2]
[362399271,1748253033488,-4215.50573035,0.00019994,2]
[362399272,1748253033498,-420.0,0.00019994,2]
[362399274,1748253033507,-420.0,0.00019994,2]
[362399276,1748253033517,-420.0,0.00019994,2]
[362399279,1748253033526,-420.0,0.00019994,2]
[362399281,1748253033536,-420.0,0.00019994,2]
[362399283,1748253033545,-420.0,0.00019994,2]
[362399285,1748253033556,-510.41952141,0.00019994,2]
[362399287,1748253033566,-420.0,0.00019994,2]
[362399289,1748253033575,-421.28755277,0.00019994,2]
[362399291,1748253033585,-420.0,0.00019994,2]
[362399292,1748253033595,-420.0,0.00019994,2]
[362399295,1748253033605,-420.0,0.00019994,2]
[362399296,1748253033614,-420.0,0.00019994,2]
[362399299,1748253033624,-420.0,0.00019994,2]
[362399301,1748253033634,-420.0,0.00019994,2]
[362399302,1748253033644,-420.0,0.00019994,2]
[362399304,1748253033654,-420.0,0.00019994,2]
[362399307,1748253033664,-420.0,0.00019994,2]
[362399309,1748253033674,-420.0,0.00019994,2]
[362399311,1748253033683,-420.0,0.00019994,2]
[362399312,1748253033693,-420.0,0.00019994,2]
[362399314,1748253033702,-420.0,0.00019994,2]
[362399317,1748253033712,-420.0,0.00019994,2]
[362399318,1748253033723,-420.0,0.00019994,2]
[362399320,1748253033732,-420.0,0.00019994,2]
[362399323,1748253033742,-420.0,0.00019994,2]
[362399324,1748253033753,-420.0,0.00019994,2]
[362399326,1748253033762,-420.0,0.00019994,2]
[362399328,1748253033772,-420.0,0.00019994,2]
[362399330,1748253033781,-560.67781529,0.00019994,2]
[362399332,1748253033790,-420.0,0.00019994,2]
[362399334,1748253033799,-420.0,0.00019994,2]
[362399336,1748253033809,-420.0,0.00019994,2]
[362399338,1748253033818,-296.71769346,0.00019994,2]
[362399340,1748253033827,-420.0,0.00019994,2]
[362399357,1748253034044,-420.0,0.00019994,2]
[362399358,1748253034054,-461.6,0.00019994,2]
[362399359,1748253034064,-421.97149948,0.00019994,2]
[362399360,1748253034074,-420.0,0.00019994,2]
[362399361,1748253034083,-420.0,0.00019994,2]
[362399362,1748253034095,-420.0,0.00019994,2]
[362399363,1748253034106,-420.0,0.00019994,2]
[362399364,1748253034116,-420.0,0.00019994,2]
[362399365,1748253034125,-420.0,0.00019994,2]
[362399366,1748253034135,-305.66144425,0.00019994,2]
[362399367,1748253034145,-420.0,0.00019994,2]
[362399368,1748253034155,-420.0,0.00019994,2]
[362399369,1748253034165,-420.0,0.00019994,2]
[362399370,1748253034174,-420.0,0.00019994,2]
[362399371,1748253034184,-420.0,0.00019994,2]
[362399372,1748253034193,-420.0,0.00019994,2]
[362399373,1748253034203,-420.0,0.00019994,2]
[362399374,1748253034213,-420.0,0.00019994,2]
[362399375,1748253034223,-420.0,0.00019994,2]
[362399376,1748253034232,-420.0,0.00019994,2]
[362399377,1748253034242,-517.55533746,0.00019994,2]
[362399378,1748253034252,-420.0,0.00019994,2]
[362399379,1748253034262,-420.0,0.00019994,2]
[362399380,1748253034271,-420.0,0.00019994,2]
[362399381,1748253034281,-420.0,0.00019994,2]
[362399382,1748253034291,-420.0,0.00019994,2]
[362399383,1748253034300,-420.0,0.00019994,2]
[362399384,1748253034310,-420.0,0.00019994,2]
[362399385,1748253034320,-420.0,0.00019994,2]
[362399386,1748253034330,-420.0,0.00019994,2]
[362399387,1748253034342,-420.0,0.00019994,2]
[362399388,1748253034351,-420.0,0.00019994,2]
[362399389,1748253034363,-420.0,0.00019994,2]
[362399390,1748253034372,-420.0,0.00019994,2]
[362399391,1748253034382,-420.0,0.00019994,2]
[362399392,1748253034392,-420.0,0.00019994,2]
[362399393,1748253034402,-420.0,0.00019994,2]
[362399394,1748253034412,-420.0,0.00019994,2]
[362399395,1748253034421,-420.0,0.00019994,2]
[362399396,1748253034432,-421.82716794,0.00019994,2]
[362399397,1748253034442,-420.0,0.00019995,2]
[362399398,1748253034451,-420.0,0.00019995,2]
[362399399,1748253034460,-420.0,0.00019995,2]
[362399400,1748253034470,-420.0,0.00019995,2]
[362399401,1748253034479,-420.0,0.00019995,2]
[362399402,1748253034488,-420.0,0.00019995,2]
[362399403,1748253034498,-329.1,0.00019995,2]
[362399404,1748253034507,-244.19,0.00019995,2]
[362399405,1748253034516,-420.0,0.00019995,2]
[362399406,1748253034525,-505.13,0.00019995,2]
[362399407,1748253034535,-420.0,0.00019995,2]
[362399408,1748253034544,-318.28,0.00019995,2]
[362399409,1748253034553,-420.0,0.00019995,2]
[362399410,1748253034563,-316.08104053,0.00019995,2]
[362399411,1748253034572,-420.0,0.00019995,2]
[362399412,1748253034581,-420.0,0.00019995,2]
[362399413,1748253034591,-420.0,0.00019995,2]
[362399414,1748253034601,-420.0,0.00019995,2]
[362399415,1748253034610,-203.42,0.00019995,2]
[362399416,1748253034619,-561.23,0.00019995,2]
[362399417,1748253034629,-420.0,0.00019995,2]
[362399418,1748253034638,-420.0,0.00019995,2]
[362399419,1748253034647,-420.0,0.00019995,2]
[362399420,1748253034657,-420.0,0.00019995,2]
[362399421,1748253034666,-420.0,0.00019995,2]
[362399422,1748253034675,-420.0,0.00019995,2]
[362399423,1748253034684,-420.0,0.00019995,2]
[362399424,1748253034694,-420.0,0.00019995,2]
[362399425,1748253034703,-420.0,0.00019995,2]
[362399426,1748253034712,-420.0,0.00019995,2]
[362399427,1748253034721,-292.22457188,0.00019995,2]
[362399428,1748253034736,-127.77542812,0.00019995,2]
[362399429,1748253034745,-420.0,0.00019995,2]
[362399430,1748253034755,-420.9243278,0.00019995,2]
[362399431,1748253034764,-433.52,0.00019995,2]
[362399432,1748253034773,-420.0,0.00019995,2]
[362399433,1748253034783,-420.0,0.00019995,2]
[362399434,1748253034792,-420.0,0.00019995,2]
[362399435,1748253034801,-500.0,0.00019995,2]
[362399436,1748253034810,-420.7205139,0.00019995,2]
[362399437,1748253034819,-420.0,0.00019995,2]
[362399438,1748253034828,-543.69,0.00019995,2]
[362399439,1748253034839,-427.55461465,0.00019995,2]
[362399440,1748253034849,-420.0,0.00019995,2]
[362399441,1748253034858,-420.0,0.00019995,2]
[362399442,1748253034867,-420.0,0.00019995,2]
[362399443,1748253034877,-516.46,0.00019995,2]
[362399444,1748253034886,-420.0,0.00019995,2]
[362399445,1748253034895,-420.0,0.00019995,2]
[362399446,1748253034904,-420.0,0.00019995,2]
[362399447,1748253034913,-420.0,0.00019995,2]
[362399448,1748253034922,-420.0,0.00019995,2]
[362399449,1748253034931,-355.13828218,0.00019995,2]
[362399450,1748253034941,-420.0,0.00019995,2]
[362399451,1748253034950,-420.0,0.00019995,2]
[362399452,1748253034959,-477.91,0.00019995,2]
[362399453,1748253034969,-420.0,0.00019995,2]
[362399454,1748253034978,-420.0,0.00019995,2]
[362399455,1748253034988,-420.0,0.00019995,2]
[362399456,1748253035000,-420.0,0.00019995,2]
[362399457,1748253035010,-420.0,0.00019995,2]
[362399458,1748253035019,-212.54,0.00019995,2]
[362399459,1748253035030,-420.0,0.00019995,2]
[362399460,1748253035039,-420.0,0.00019995,2]
[362399461,1748253035048,-420.0,0.00019995,2]
[362399462,1748253035058,-500.35,0.00019995,2]
[362399463,1748253035067,-159.34919675,0.00019995,2]
[362399464,1748253035076,-421.37457943,0.00019995,2]
[362399465,1748253035085,-420.0,0.00019995,2]
[362399466,1748253035097,-420.0,0.00019995,2]
[362399467,1748253035106,-422.94179654,0.00019995,2]
[362399468,1748253035117,-420.0,0.00019995,2]
[362399469,1748253035127,-420.0,0.00019995,2]
[362399470,1748253035137,-420.0,0.00019995,2]
[362399471,1748253035146,-420.0,0.00019995,2]
[362399472,1748253035156,-432.50775067,0.00019995,2]
[362399473,1748253035165,-420.0,0.00019995,2]
[362399474,1748253035174,-420.0,0.00019995,2]
[362399475,1748253035184,-420.0,0.00019995,2]
[362399476,1748253035194,-420.0,0.00019995,2]
[362399477,1748253035204,-451.01434155,0.00019995,2]
[362399478,1748253035214,-165.36,0.00019995,2]
[362399479,1748253035224,-249.96807222,0.00019995,2]
[362399480,1748253035234,-480.66990121,0.00019995,2]
[362399481,1748253035243,-420.0,0.00019995,2]
[362399482,1748253035252,-488.48,0.00019995,2]
[362399483,1748253035262,-420.0,0.00019995,2]
[362399484,1748253035272,-420.0,0.00019995,2]
[362399485,1748253035281,-475.79281811,0.00019995,2]
[362399486,1748253035291,-420.0,0.00019995,2]
[362399487,1748253035300,-420.0,0.00019995,2]
[362399488,1748253035310,-420.0,0.00019995,2]
[362399489,1748253035319,-420.0,0.00019995,2]
[362399490,1748253035329,-174.19707312,0.00019995,2]
[362399491,1748253035339,-420.0,0.00019995,2]
[362399492,1748253035348,-434.89,0.00019995,2]
[362399493,1748253035357,-420.0,0.00019995,2]
[362399494,1748253035367,-420.0,0.00019995,2]
[362399495,1748253035377,-420.0,0.00019995,2]
[362399496,1748253035386,-420.0,0.00019995,2]
[362399497,1748253035395,-420.0,0.00019995,2]
[362399498,1748253035405,-420.0,0.00019995,2]
[362399499,1748253035414,-402.27,0.00019995,2]
[362399500,1748253035424,-420.0,0.00019995,2]
[362399501,1748253035433,-161.01450351,0.00019995,2]
[362399502,1748253035442,-420.0,0.00019995,2]
[362399503,1748253035451,-420.0,0.00019995,2]
[362399504,1748253035460,-420.0,0.00019995,2]
[362399505,1748253035469,-421.61296229,0.00019995,2]
[362399506,1748253035478,-420.0,0.00019995,2]
[362399507,1748253035487,-420.0,0.00019995,2]
[362399508,1748253035496,-420.0,0.00019995,2]
[362399509,1748253035505,-425.54744336,0.00019995,2]
[362399510,1748253035514,-420.91782051,0.00019995,2]
[362399511,1748253035524,-420.0,0.00019995,2]
[362399512,1748253035533,-420.0,0.00019995,2]
[362399513,1748253035543,-420.0,0.00019995,2]
[362399514,1748253035553,-420.92359193,0.00019995,2]
[362399515,1748253035562,-420.0,0.00019995,2]
[362399516,1748253035571,-433.79502405,0.00019995,2]
[362399517,1748253035580,-546.42119246,0.00019995,2]
[362399518,1748253035590,-426.32180072,0.00019995,2]
[362399519,1748253035599,-420.0,0.00019995,2]
[362399520,1748253035608,-379.82304548,0.00019995,2]
[362399521,1748253035618,-420.0,0.00019995,2]
[362399522,1748253035628,-420.0,0.00019995,2]
[362399523,1748253035639,-420.0,0.00019995,2]
[362399524,1748253035648,-420.0,0.00019995,2]
[362399525,1748253035658,-430.89,0.00019995,2]
[362399526,1748253035667,-420.0,0.00019995,2]
[362399527,1748253035676,-420.0,0.00019995,2]
[362399528,1748253035685,-420.0,0.00019995,2]
[362399529,1748253035695,-420.0,0.00019995,2]
[362399530,1748253035704,-420.0,0.00019995,2]
[362399531,1748253035713,-420.0,0.00019995,2]
[362399532,1748253035722,-420.0,0.00019995,2]
[362399533,1748253035731,-465.43347024,0.00019995,2]
[362399534,1748253035741,-256.65809976,0.00019995,2]
[362399535,1748253035751,-420.0,0.00019995,2]
[362399536,1748253035762,-350.96131177,0.00019995,2]
[362399537,1748253035974,-420.0,0.00019995,2]
[362399538,1748253035984,-511.35923053,0.00019995,2]
[362399539,1748253035994,-420.0,0.00019995,2]
[362399540,1748253036003,-420.0,0.00019995,2]
[362399541,1748253036012,-420.0,0.00019995,2]
[362399542,1748253036022,-432.31394962,0.00019995,2]
[362399543,1748253036035,-420.0,0.00019995,2]
[362399544,1748253036044,-420.0,0.00019995,2]
[362399545,1748253036054,-420.0,0.00019995,2]
[362399546,1748253036063,-420.0,0.00019995,2]
[362399547,1748253036075,-423.1436431,0.00019995,2]
[362399548,1748253036086,-420.0,0.00019995,2]
[362399549,1748253036098,-420.0,0.00019995,2]
[362399550,1748253036109,-420.0,0.00019995,2]
[362399551,1748253036120,-420.0,0.00019995,2]
[362399552,1748253036130,-420.0,0.00019995,2]
[362399553,1748253036139,-420.0,0.00019995,2]
[362399554,1748253036151,-536.27091512,0.00019995,2]
[362399555,1748253036162,-420.0,0.00019995,2]
[362399556,1748253036172,-420.0,0.00019995,2]
[362399557,1748253036182,-420.0,0.00019995,2]
[362399558,1748253036191,-420.0,0.00019995,2]
[362399559,1748253036201,-420.0,0.00019995,2]
[362399560,1748253036210,-316.52895848,0.00019995,2]
[362399561,1748253036232,-103.47104152,0.00019995,2]
[362399562,1748253036242,-283.66118381,0.00019995,2]
[362399563,1748253036253,-136.33881619,0.00019995,2]
[362399564,1748253036263,-132.48066041,0.00019995,2]
[362399565,1748253036274,-287.51933959,0.00019995,2]
[362399566,1748253036283,-537.08044135,0.00019995,2]
[362399567,1748253036292,-420.0,0.00019995,2]
[362399568,1748253036301,-420.0,0.00019995,2]
[362399569,1748253036310,-420.0,0.00019995,2]
[362399570,1748253036320,-35.80747818,0.00019995,2]
[362399574,1748253037379,-468.36485935,0.00019894,2]
[362399575,1748253037393,-452.69426491,0.00019894,2]
[362399578,1748253037437,-105.92509074,0.00019894,2]
[362399579,1748253037446,-1384.58018122,0.00019899,2]
[362399580,1748253037459,-407.93916142,0.00019899,2]
[362399581,1748253037469,-420.0,0.00019994,2]
[362399582,1748253037480,-420.0,0.00019994,2]
[362399583,1748253037489,-52.06083858,0.00019994,2]
[362399584,1748253037503,-447.93916142,0.00019994,2]
[362399585,1748253037512,-420.0,0.00019994,2]
[362399586,1748253037522,-420.0,0.00019994,2]
[362399587,1748253037531,-420.0,0.00019994,2]
[362399588,1748253037541,-384.19252182,0.00019995,2]
[362399589,1748253037550,-429.66183044,0.00019995,2]
[362399590,1748253037560,-215.81989294,0.00019995,2]
[362399591,1748253037572,-204.18010706,0.00019995,2]
[362399592,1748253037582,-420.0,0.00019995,2]
[362399593,1748253037592,-420.0,0.00019995,2]
[362399594,1748253037601,-420.0,0.00019995,2]
[362399595,1748253037612,-422.95406359,0.00019995,2]
[362399596,1748253037621,-423.79575609,0.00019995,2]
[362399597,1748253037631,-420.0,0.00019995,2]
[362399598,1748253037641,-420.0,0.00019995,2]
[362399599,1748253037651,-402.38107368,0.00019995,2]
[362399600,1748253037662,-420.0,0.00019995,2]
[362399601,1748253037671,-420.0,0.00019995,2]
[362399602,1748253037681,-420.0,0.00019995,2]
[362399603,1748253037693,-420.46786349,0.00019995,2]
[362399604,1748253037707,-420.0,0.00019995,2]
[362399605,1748253037717,-420.0,0.00019995,2]
[362399606,1748253037727,-420.0,0.00019995,2]
[362399607,1748253037737,-426.25312837,0.00019995,2]
[362399608,1748253037747,-421.9966912,0.00019995,2]
[362399609,1748253037757,-497.39,0.00019995,2]
[362399610,1748253037766,-422.14469534,0.00019995,2]
[362399611,1748253037776,-424.69525207,0.00019995,2]
[362399612,1748253037786,-420.0,0.00019995,2]
[362399613,1748253037797,-420.0,0.00019995,2]
[362399614,1748253037806,-420.0,0.00019995,2]
[362399615,1748253037816,-420.0,0.00019995,2]
[362399616,1748253037826,-420.0,0.00019995,2]
[362399617,1748253037836,-427.56728741,0.00019995,2]
[362399618,1748253037847,-375.75647702,0.00019995,2]
[362399620,1748253037859,-423.85381626,0.00019995,2]
[362399622,1748253037869,-420.0,0.00019995,2]
[362399623,1748253037879,-527.85264108,0.00019995,2]
[362399624,1748253037889,-420.0,0.00019995,2]
[362399625,1748253037898,-420.0,0.00019995,2]
[362399626,1748253037908,-420.0,0.00019995,2]
[362399627,1748253037919,-481.47042423,0.00019995,2]
[362399628,1748253037928,-423.35865482,0.00019995,2]
[362399629,1748253037939,-420.0,0.00019995,2]
[362399630,1748253037948,-424.69876578,0.00019995,2]
[362399631,1748253037959,-420.0,0.00019995,2]
[362399632,1748253037968,-424.41257784,0.00019995,2]
[362399633,1748253037979,-421.48813614,0.00019995,2]
[362399634,1748253037988,-425.62458583,0.00019995,2]
[362399635,1748253037998,-420.0,0.00019995,2]
[362399636,1748253038007,-420.0,0.00019995,2]
[362399637,1748253038019,-425.85562802,0.00019995,2]
[362399638,1748253038029,-422.87887271,0.00019995,2]
[362399639,1748253038042,-420.0,0.00019995,2]
[362399640,1748253038053,-420.0,0.00019995,2]
[362399641,1748253038064,-420.0,0.00019995,2]
[362399642,1748253038075,-250.0,0.00019995,2]
[362399643,1748253038084,-420.0,0.00019995,2]
[362399644,1748253038096,-420.0,0.00019995,2]
[362399645,1748253038106,-179.37914171,0.00019995,2]
[362399646,1748253038119,-240.62085829,0.00019995,2]
[362399647,1748253038129,-420.0,0.00019995,2]
[362399648,1748253038139,-420.0,0.00019995,2]
[362399649,1748253038148,-419.83441607,0.00019995,2]
[362399650,1748253038159,-420.0,0.00019995,2]
[362399651,1748253038169,-423.10382775,0.00019995,2]
[362399652,1748253038178,-467.01336943,0.00019995,2]
[362399653,1748253038187,-420.0,0.00019995,2]
[362399654,1748253038197,-420.0,0.00019995,2]
[362399655,1748253038206,-420.0,0.00019995,2]
[362399656,1748253038215,-475.12463835,0.00019995,2]
[362399657,1748253038224,-420.0,0.00019995,2]
[362399658,1748253038234,-420.0,0.00019995,2]
[362399659,1748253038244,-423.59521451,0.00019995,2]
[362399660,1748253038253,-310.25203586,0.00019995,2]
[362399661,1748253038265,-126.19541617,0.00019995,2]
[362399662,1748253038275,-424.10324715,0.00019995,2]
[362399663,1748253038284,-14.74515168,0.00019995,2]
[362399664,1748253038296,-405.25484832,0.00019995,2]
[362399665,1748253038306,-225.88660127,0.00019995,2]
[362399666,1748253038318,-234.98732144,0.00019995,2]
[362399667,1748253038328,-377.98474944,0.00019995,2]
[362399668,1748253038338,-420.0,0.00019995,2]
[362399669,1748253038350,-565.59640131,0.00019995,2]
[362399670,1748253038359,-475.95761784,0.00019995,2]
[362399671,1748253038370,-440.03607139,0.00019995,2]
[362399672,1748253038381,-420.0,0.00019995,2]
[362399673,1748253038392,-420.0,0.00019995,2]
[362399674,1748253038401,-420.0,0.00019995,2]
[362399675,1748253038411,-420.0,0.00019995,2]
[362399676,1748253038421,-422.38024049,0.00019995,2]
[362399677,1748253038430,-424.33251224,0.00019995,2]
[362399678,1748253038439,-426.46229875,0.00019995,2]
[362399679,1748253038448,-287.95223254,0.00019995,2]
[362399680,1748253038457,-420.0,0.00019995,2]
[362399681,1748253038467,-420.0,0.00019995,2]
[362399682,1748253038477,-420.0,0.00019995,2]
[362399683,1748253038489,-420.0,0.00019995,2]
[362399684,1748253038500,-420.0,0.00019995,2]
[362399685,1748253038509,-420.0,0.00019995,2]
[362399686,1748253038520,-420.0,0.00019995,2]
[362399687,1748253038531,-420.0,0.00019995,2]
[362399688,1748253038540,-420.0,0.00019995,2]
[362399689,1748253038550,-420.0,0.00019995,2]
[362399690,1748253038559,-423.24591181,0.00019995,2]
[362399691,1748253038568,-422.58194854,0.00019995,2]
[362399692,1748253038578,-529.53022539,0.00019995,2]
[362399693,1748253038587,-420.0,0.00019995,2]
[362399694,1748253038597,-420.0,0.00019995,2]
[362399695,1748253038607,-441.76180036,0.00019995,2]
[362399696,1748253038616,-420.0,0.00019995,2]
[362399697,1748253038630,-420.0,0.00019995,2]
[362399698,1748253038639,-423.90300025,0.00019995,2]
[362399699,1748253038648,-420.0,0.00019995,2]
[362399700,1748253038657,-420.0,0.00019995,2]
[362399701,1748253038666,-280.72024917,0.00019995,2]
[362399702,1748253038675,-211.82066964,0.00019995,2]
[362399703,1748253038706,-211.25606566,0.00019995,2]
[362399704,1748253038716,-420.0,0.00019995,2]
[362399705,1748253038725,-563.39054061,0.00019995,2]
[362399706,1748253038735,-420.0,0.00019995,2]
[362399707,1748253038743,-198.1579205,0.00019995,2]
[362399708,1748253038755,-223.90384594,0.00019995,2]
[362399709,1748253038764,-420.0,0.00019995,2]
[362399710,1748253038773,-420.0,0.00019995,2]
[362399711,1748253038783,-414.72216367,0.00019995,2]
[362399712,1748253038794,-5.27783633,0.00019995,2]
[362399713,1748253038804,-424.21301683,0.00019995,2]
[362399714,1748253038813,-341.94914684,0.00019995,2]
[362399715,1748253038825,-78.05085316,0.00019995,2]
[362399716,1748253038835,-448.26066792,0.00019995,2]
[362399717,1748253038846,-420.0,0.00019995,2]